{"text_format":"1","workbook":"xlsx","n_sheets":6,"sheets":["8 Teilnehmer","7 Teilnehmer","6 Teilnehmer","5 Teilnehmer","Auswertung","4 Teilnehmer"],"not_rendered":{"charts":0,"images":0,"macros":0,"external_links":0,"defined_names":6,"comments":0,"pivot_tables":0},"unopened":[],"bounds":{"document_bytes":16777216,"sheet_cells":100000,"rows_first":2000,"rows_last":500,"rows_between":2000,"halvings":0,"cell_chars":16384,"cell_head_chars":4096},"cells_cut":0,"cells_raw":0,"read":"whole","date_system":"1900"}

{"sheet":"8 Teilnehmer","index":0,"n_rows":71,"n_cols":27,"rows_kept":71,"cut":false,"hidden":false,"merged":[]}
[null,null,null,"Landesfinale 2012 der WK II w",null,null,null,null,null,null,null,"Bad Belzig",null,null,1,"1. Staffel 1",null,null,null,null,"Landesfinale 2012 WK IIw"]
[null,null,null,null,null,null,null,null,null,null,null,"Elsterwerda",null,null,2,"1. Staffel 2",null,null,null,null,"Spielplan Vorrunde Staffel 1"]
["Staffel 1",null,null,null,null,null,null,null,null,null,null,"Finsterwalde",null,null,3,"2. Staffel 1"]
[null,null,null,null,"Ergebnis",null,null,null,null,null,null,"Frankfurt",null,null,4,"2. Staffel 2",null,null,"Spielort:",null,"Mehrzweckhalle"]
[{"$f":"$O$1","v":1},"gegen",{"$f":"$O$2","v":2},null,":",null,null,null,null,null,null,"Oranienburg",null,null,5,"3. Staffel 1"]
[null,null,null,null,null,null,null,null,null,null,null,"Rangsdorf",null,null,6,"3. Staffel 2",null,null,"Spielnummer",null,null,null,null,null,"Ergebnis"]
[{"$f":"$O$3","v":3},"gegen",{"$f":"$O$4","v":4},null,":",null,null,null,null,null,null,"Sportschule",null,null,7,"4. Staffel 1"]
[null,null,null,null,null,null,null,null,null,null,null,"Templin",null,null,8,"4. Staffel 2",null,null,1,null,{"$f":"$O$1","v":1},"gegen",{"$f":"$O$2","v":2},null,":"]
[{"$f":"$O$1","v":1},"gegen",{"$f":"$O$3","v":3},null,":",null,null,null,null,null,null,null,null,null,9]
[null,null,null,null,null,null,null,null,null,null,null,null,null,null,10,null,null,null,2,null,{"$f":"$O$3","v":3},"gegen",{"$f":"$O$4","v":4},null,":"]
[{"$f":"$O$2","v":2},"gegen",{"$f":"$O$4","v":4},null,":",null,null,null,null,null,null,null,null,null,11]
[null,null,null,null,null,null,null,null,null,null,null,null,null,null,null,null,null,null,3,null,{"$f":"$O$1","v":1},"gegen",{"$f":"$O$3","v":3},null,":"]
[{"$f":"$O$3","v":3},"gegen",{"$f":"$O$2","v":2},null,":"]
[null,null,null,null,null,null,null,null,null,null,null,null,null,null,null,null,null,null,4,null,{"$f":"$O$2","v":2},"gegen",{"$f":"$O$4","v":4},null,":"]
[{"$f":"$O$1","v":1},"gegen",{"$f":"$O$4","v":4},null,":"]
[null,null,null,null,null,null,null,null,null,null,null,"Elsterschloss-Gymnasium Elsterwerda",null,null,null,null,null,null,5,null,{"$f":"$O$3","v":3},"gegen",{"$f":"$O$2","v":2},null,":"]
[null,{"$f":"$O$1","v":1},{"$f":"$O$2","v":2},{"$f":"$O$3","v":3},{"$f":"$O$4","v":4},"Punkte","Balldiff.",null,null,null,null,"Fläming-Gymnasium Bad Belzig"]
[{"$f":"$O$1","v":1},"X",":",":",":",null,":",null,null,null,null,"Fontane-Gymnasium Rangsdorf",null,null,null,null,null,null,6,null,{"$f":"$O$1","v":1},"gegen",{"$f":"$O$4","v":4},null,":"]
[{"$f":"$O$2","v":2},":","X",":",":",null,":",null,null,null,null,"Gymnasium Templin"]
[{"$f":"$O$3","v":3},":",":","X",":",null,":",null,null,null,null,"Luiese-Henriette-Gymnasium Oranienburg"]
[{"$f":"$O$4","v":4},":",":",":","X",null,":",null,null,null,null,"Sängerstadt-Gymnasium Finsterwalde",null,null,null,null,null,null,null,null,"Spielplan Vorrunde Staffel 2",null,null,null,null,null,"Hauptplatz"]
["Staffel 2",null,null,null,null,null,null,null,null,null,null,"Sportschule Frankfurt (Oder)",null,null,null,null,null,null,null,null,null,null,null,null,null,null,"Nebenplatz"]
[null,null,null,null,"Ergebnis",null,null,null,null,null,null,"Städtisches-Gymnasium I Frankfurt(Oder)",null,null,null,null,null,null,"Spielort:",null,"alte Halle",null,null,null,null,null,"Hauptplatz"]
[{"$f":"$O$5","v":5},"gegen",{"$f":"$O$6","v":6},null,":",null,null,null,null,null,null,null,null,null,null,null,null,null,null,null,null,null,null,null,null,null,"Nebenplatz"]
[null,null,null,null,null,null,null,null,null,null,null,null,null,null,null,null,null,null,"Spielnummer",null,null,null,null,null,"Ergebnis",null,"Hauptplatz"]
[{"$f":"$O$7","v":7},"gegen",{"$f":"$O$8","v":8},null,":",null,null,null,null,null,null,null,null,null,null,null,null,null,null,null,null,null,null,null,null,null,"Nebenplatz"]
[null,null,null,null,null,null,null,null,null,null,null,null,null,null,null,null,null,null,1,null,{"$f":"$O$5","v":5},"gegen",{"$f":"$O$6","v":6},null,":"]
[{"$f":"$O$6","v":6},"gegen",{"$f":"$O$8","v":8},null,":"]
[null,null,null,null,null,null,null,null,null,null,null,null,null,null,null,null,null,null,2,null,{"$f":"$O$7","v":7},"gegen",{"$f":"$O$8","v":8},null,":"]
[{"$f":"$O$5","v":5},"gegen",7,null,":"]
[null,null,null,null,null,null,null,null,null,null,null,null,null,null,null,null,null,null,3,null,{"$f":"$O$6","v":6},"gegen",{"$f":"$O$8","v":8},null,":"]
[{"$f":"$O$5","v":5},"gegen",{"$f":"$O$8","v":8},null,":"]
[null,null,null,null,null,null,null,null,null,null,null,null,null,null,null,null,null,null,4,null,{"$f":"$O$5","v":5},"gegen",{"$f":"$O$7","v":7},null,":"]
[{"$f":"$O$6","v":6},"gegen",{"$f":"$O$7","v":7},null,":"]
[null,null,null,null,null,null,null,null,null,null,null,null,null,null,null,null,null,null,5,null,{"$f":"$O$5","v":5},"gegen",{"$f":"$O$8","v":8},null,":"]
[null,{"$f":"$O$5","v":5},{"$f":"$O$6","v":6},{"$f":"$O$7","v":7},{"$f":"$O$8","v":8},"Punkte","Balldiff."]
[{"$f":"$O$5","v":5},"X",":",":",":",null,":",null,null,null,null,null,null,null,null,null,null,null,6,null,{"$f":"$O$6","v":6},"gegen",{"$f":"$O$7","v":7},null,":"]
[{"$f":"$O$6","v":6},":","X",":",":",null,":"]
[{"$f":"$O$7","v":7},":",":","X",":",null,":",null,null,null,null,null,null,null,null,null,null,null,null,null,"Spielplan Endrunde"]
[{"$f":"$O$8","v":8},":",":",":","X",null,":"]
[null,null,null,null,null,null,null,null,null,null,null,null,null,null,null,null,null,null,"Spielort:",null,"Mehrzweckhalle"]
[]
[null,null,null,null,null,null,null,null,null,null,null,null,null,null,null,null,null,null,"Spielnr.",null,null,null,null,null,"Ergebnis"]
[]
[null,null,null,null,null,null,null,null,null,null,null,null,null,null,null,null,null,null,7,null,"Sieger Staffel II","gegen","Zweiter Staffel I"]
[null,null,null,null,null,null,null,null,null,null,null,null,null,null,null,null,null,null,null,null,null,"gegen",null,null,":"]
[]
[null,null,null,null,null,null,null,null,null,null,null,null,null,null,null,null,null,null,8,null,"Sieger Staffel I","gegen","Zweiter Staffel II"]
[null,null,null,null,null,null,null,null,null,null,null,null,null,null,null,null,null,null,null,null,null,"gegen",null,null,":"]
[]
[null,null,null,null,null,null,null,null,null,null,null,null,null,null,null,null,null,null,9,null,"Vierter Staffel I","gegen","Vierter Staffel II"]
[null,null,null,null,null,null,null,null,null,null,null,null,null,null,null,null,null,null,null,null,null,"gegen",null,null,":"]
[]
[null,null,null,null,null,null,null,null,null,null,null,null,null,null,null,null,null,null,10,null,"Dritter Staffel I","gegen","Dritter Staffel II"]
[null,null,null,null,null,null,null,null,null,null,null,null,null,null,null,null,null,null,null,null,null,"gegen",null,null,":"]
[]
[null,null,null,null,null,null,null,null,null,null,null,null,null,null,null,null,null,null,11,null,"Spiel um Platz 3"]
[null,null,null,null,null,null,null,null,null,null,null,null,null,null,null,null,null,null,null,null,null,"gegen",null,null,":"]
[]
[null,null,null,null,null,null,null,null,null,null,null,null,null,null,null,null,null,null,12,null,"Spiel um Platz 1"]
[null,null,null,null,null,null,null,null,null,null,null,null,null,null,null,null,null,null,null,null,null,"gegen",null,null,":"]
[]
[null,null,null,null,null,null,null,null,null,null,null,null,null,null,null,null,null,null,"Die Spiele 7 und 8 können wegen der Spielreihenfolge der Vorrunde getauscht werden."]
[]
[null,null,null,null,null,null,null,null,null,null,null,null,null,null,null,null,null,null,"Kriterien für die Ermittlung der Reihenfolge:"]
[]
[null,null,null,null,null,null,null,null,null,null,null,null,null,null,null,null,null,null,null,null,null,"1. Punktverhältnis"]
[null,null,null,null,null,null,null,null,null,null,null,null,null,null,null,null,null,null,null,null,null,"2. Tordifferenz"]
[null,null,null,null,null,null,null,null,null,null,null,null,null,null,null,null,null,null,null,null,null,"3. die mehr erzielten Tore"]
[null,null,null,null,null,null,null,null,null,null,null,null,null,null,null,null,null,null,null,null,null,"4. Ergebnis Direktvergleich"]
[null,null,null,null,null,null,null,null,null,null,null,null,null,null,null,null,null,null,null,null,null,"5. Siebenmeterwerfen"]

{"sheet":"7 Teilnehmer","index":1,"n_rows":62,"n_cols":27,"rows_kept":62,"cut":false,"hidden":false,"merged":[]}
[null,null,null,"Landesfinale 2013 der WK II w ",null,null,null,null,null,null,null,null,"Bad Belzig",null,1,"1. Staffel 1",null,null,null,null,"Landesfinale 2013 WK II w"]
[null,null,null,null,null,null,null,null,null,null,null,null,"Finsterwalde",null,2,"1. Staffel 2"]
["Staffel 1",null,null,null,null,null,null,null,null,null,null,null,"Neuhenhagen",null,3,"2. Staffel 1",null,null,null,null,null,"Spielplan Vorrunde Staffel 1"]
[null,null,null,null,null,null,null,null,null,null,null,null,"Oranienburg",null,4,"2. Staffel 2",null,null,null,null,null,null,null,null,null,null,"Spielfeld"]
[null,null,null,null,null,null,null,null,null,null,null,null,"Sportschule",null,5,"3. Staffel 1",null,null,"Spielort:",null,"Mehrzweckhalle"]
[null,null,null,null,"Ergebnis",null,null,null,null,null,null,null,"Templin",null,6,"3. Staffel 2",null,null,null,null,null,null,null,null,null,null,"Hauptplatz"]
[{"$f":"$O$1","v":1},"gegen",{"$f":"$O$2","v":2},null,":",null,null,null,null,null,null,null,"Zeuthen",null,7,"4. Staffel 1",null,null,"Spielnr.",null,null,null,null,null,"Ergebnis",null,"Nebenplatz"]
[null,null,null,null,null,null,null,null,null,null,null,null,null,null,8,"4. Staffel 2",null,null,null,null,null,null,null,null,null,null,"Hauptplatz"]
[{"$f":"$O$3","v":3},"gegen",{"$f":"$O$4","v":4},null,":",null,null,null,null,null,null,null,null,null,9,null,null,null,1,null,{"$f":"$O$1","v":1},"gegen",{"$f":"$O$2","v":2},null,":",null,"Nebenplatz"]
[null,null,null,null,null,null,null,null,null,null,null,null,null,null,10,null,null,null,null,null,null,null,null,null,null,null,"Hauptplatz"]
[{"$f":"$O$1","v":1},"gegen",{"$f":"$O$3","v":3},null,":",null,null,null,null,null,null,null,null,null,11,null,null,null,2,null,{"$f":"$O$3","v":3},"gegen",{"$f":"$O$4","v":4},null,":",null,"Nebenplatz"]
[null,null,null,null,null,null,null,null,null,null,null,null,null,null,null,null,null,null,null,null,null,null,null,null,null,null,"Hauptplatz"]
[{"$f":"$O$2","v":2},"gegen",{"$f":"$O$4","v":4},null,":",null,null,null,null,null,null,null,null,null,null,null,null,null,3,null,{"$f":"$O$1","v":1},"gegen",{"$f":"$O$3","v":3},null,":",null,"Nebenplatz"]
[null,null,null,null,null,null,null,null,null,null,null,null,null,null,null,null,null,null,null,null,null,null,null,null,null,null,"Hauptplatz"]
[{"$f":"$O$1","v":1},"gegen",{"$f":"$O$4","v":4},null,":",null,null,null,null,null,null,null,null,null,null,null,null,null,4,null,{"$f":"$O$2","v":2},"gegen",{"$f":"$O$4","v":4},null,":"]
[]
[{"$f":"$O$3","v":3},"gegen",{"$f":"$O$2","v":2},null,":",null,null,null,null,null,null,null,"Fläming-Gymnasium Bad Belzig",null,null,null,null,null,5,null,{"$f":"$O$1","v":1},"gegen",{"$f":"$O$4","v":4},null,":"]
[null,null,null,null,null,null,null,null,null,null,null,null,"Einstein Gymnasium Neuenhagen"]
[null,null,null,null,null,null,null,null,null,null,null,null,"F. F. Runge Gymnasium Oranienburg",null,null,null,null,null,6,null,{"$f":"$O$3","v":3},"gegen",{"$f":"$O$2","v":2},null,":"]
[null,{"$f":"$O$1","v":1},{"$f":"$O$2","v":2},{"$f":"$O$3","v":3},{"$f":"$O$4","v":4},"Punkte","Tore",null,null,null,null,null,"Gymnasium Templin"]
[{"$f":"$O$1","v":1},"X",null,null,null,":",":",null,null,null,null,null,"Sängerstadt-Gymnasium Finsterwalde",null,null,null,null,null,null,null,null,"Spielplan Vorrunde Staffel 2"]
[{"$f":"$O$2","v":2},null,"X",null,null,":",":",null,null,null,null,null,"Sportschule Frankfurt (Oder)"]
[{"$f":"$O$3","v":3},null,null,"X",null,":",":",null,null,null,null,null,"Musikbetonte Gesamtschule Zeuthen",null,null,null,null,null,"Spielort:",null,"alte Halle"]
[{"$f":"$O$4","v":4},null,null,null,"X",":",":"]
["Staffel 2",null,null,null,null,null,null,null,null,null,null,null,null,null,null,null,null,null,"Spielnr.",null,null,null,null,null,"Ergebnis"]
[]
[null,null,null,null,null,null,null,null,null,null,null,null,null,null,null,null,null,null,1,null,{"$f":"$O$5","v":5},"gegen",{"$f":"$O$6","v":6},null,":"]
[null,null,null,null,"Ergebnis"]
[{"$f":"$O$5","v":5},"gegen",{"$f":"$O$6","v":6},null,":",null,null,null,null,null,null,null,null,null,null,null,null,null,2,null,{"$f":"$O$5","v":5},"gegen",{"$f":"$O$7","v":7},null,":"]
[]
[{"$f":"$O$5","v":5},"gegen",{"$f":"$O$7","v":7},null,":",null,null,null,null,null,null,null,null,null,null,null,null,null,3,null,{"$f":"$O$6","v":6},"gegen",{"$f":"$O$7","v":7},null,":"]
[]
[{"$f":"$O$6","v":6},"gegen",{"$f":"$O$7","v":7},null,":",null,null,null,null,null,null,null,null,null,null,null,null,null,null,null,null,"Spielplan Endrunde"]
[]
[null,null,null,null,null,null,null,null,null,null,null,null,null,null,null,null,null,null,"Spielort:",null,"Mehrzweckhalle"]
[]
[null,null,null,null,null,null,null,null,null,null,null,null,null,null,null,null,null,null,"Spielnr.",null,null,null,null,null,"Ergebnis",null,"Hauptplatz"]
[null,{"$f":"$O$5","v":5},{"$f":"$O$6","v":6},{"$f":"$O$7","v":7},"Punkte","Tore",null,null,null,null,null,null,null,null,null,null,null,null,null,null,null,null,null,null,null,null,"Nebenplatz"]
[{"$f":"$O$5","v":5},"X",null,null,":",":",null,null,null,null,null,null,null,null,null,null,null,null,7,null,"Sieger Staffel II","gegen","Zweiter Staffel I",null,null,null,"Hauptplatz"]
[{"$f":"$O$6","v":6},null,"X",null,":",":",null,null,null,null,null,null,null,null,null,null,null,null,null,null,null,"gegen",null,null,":",null,"Hauptplatz"]
[{"$f":"$O$7","v":7},null,null,"X",":",":",null,null,null,null,null,null,null,null,null,null,null,null,null,null,null,null,null,null,null,null,"Nebenplatz"]
[null,null,null,null,null,null,null,null,null,null,null,null,null,null,null,null,null,null,8,null,"Sieger Staffel I","gegen","Zweiter Staffel II"]
[null,null,null,null,null,null,null,null,null,null,null,null,null,null,null,null,null,null,null,null,null,"gegen",null,null,":"]
[]
[null,null,null,null,null,null,null,null,null,null,null,null,null,null,null,null,null,null,9,null,"Dritter Staffel I","gegen","Dritter Staffel II"]
[null,null,null,null,null,null,null,null,null,null,null,null,null,null,null,null,null,null,null,null,null,"gegen",null,null,":"]
[]
[null,null,null,null,null,null,null,null,null,null,null,null,null,null,null,null,null,null,10,null,"Spiel um Platz 3"]
[null,null,null,null,null,null,null,null,null,null,null,null,null,null,null,null,null,null,null,null,null,"gegen",null,null,":"]
[]
[null,null,null,null,null,null,null,null,null,null,null,null,null,null,null,null,null,null,11,null,"Spiel um Platz 1"]
[null,null,null,null,null,null,null,null,null,null,null,null,null,null,null,null,null,null,null,null,null,"gegen",null,null,":"]
[]
[null,null,null,null,null,null,null,null,null,null,null,null,null,null,null,null,null,null,"Die Spiele 7 und 8 können wegen der Spielreihenfolge der Vorrunde getauscht werden."]
[]
[null,null,null,null,null,null,null,null,null,null,null,null,null,null,null,null,null,null,"Kriterien für die Ermittlung der Reihenfolge:"]
[]
[null,null,null,null,null,null,null,null,null,null,null,null,null,null,null,null,null,null,null,null,null,"1. Punktverhältnis"]
[null,null,null,null,null,null,null,null,null,null,null,null,null,null,null,null,null,null,null,null,null,"2. Tordifferenz"]
[null,null,null,null,null,null,null,null,null,null,null,null,null,null,null,null,null,null,null,null,null,"3. die mehr erzielten Tore"]
[null,null,null,null,null,null,null,null,null,null,null,null,null,null,null,null,null,null,null,null,null,"4. Ergebnis Direktvergleich"]
[null,null,null,null,null,null,null,null,null,null,null,null,null,null,null,null,null,null,null,null,null,"5. Siebenmeterwerfen"]

{"sheet":"6 Teilnehmer","index":2,"n_rows":79,"n_cols":25,"rows_kept":79,"cut":false,"hidden":false,"merged":[]}
[null,null,null,"Landesfinale 2019 der WK II w ",null,null,null,null,null,null,null,null,null,"Rangsdorf","Finsterwalde","1. Staffel 1"]
[null,null,null,null,null,null,null,null,null,null,null,null,null,"Templin","Frankfurt ","1. Staffel 2"]
["Staffel 1",null,null,null,null,null,null,null,null,null,null,null,null,"Eichwalde","Sportschule","2. Staffel 1"]
[null,null,null,null,null,null,null,null,null,null,null,null,null,"Frankfurt","Rangsdorf","2. Staffel 2"]
[null,null,null,null,null,null,null,null,null,null,null,null,null,"Rüdersdorf","Templin","3. Staffel 1"]
[null,null,null,null,"Ergebnis",null,null,null,null,null,null,null,null,"Hennigsdorf","Orianienburg","3. Staffel 2"]
[{"$f":"$O$1","v":"Finsterwalde"},"gegen",{"$f":"$O$2","v":"Frankfurt "},null,"1 : 6",null,null,null,null,null,null,null,null,null,7,"4. Staffel 1"]
[null,null,null,null,null,null,null,null,null,null,null,null,null,null,8,"4. Staffel 2"]
[{"$f":"$O$1","v":"Finsterwalde"},"gegen",{"$f":"$O$3","v":"Sportschule"},null,"1 : 14",null,null,null,null,null,null,null,null,null,9]
[null,null,null,null,null,null,null,null,null,null,null,null,null,null,10]
[{"$f":"$O$2","v":"Frankfurt "},"gegen",{"$f":"$O$3","v":"Sportschule"},null,"3 : 14",null,null,null,null,null,null,null,null,null,11]
[]
[]
[null,null,{"$f":"$O$1","v":"Finsterwalde"},{"$f":"$O$2","v":"Frankfurt "},{"$f":"$O$3","v":"Sportschule"},"Punkte","Tore"]
[null,{"$f":"$O$1","v":"Finsterwalde"},"X","0 : 2/1 : 6","0 : 2/1 : 14","0 : 4","2:20","3. Platz"]
[null,{"$f":"$O$2","v":"Frankfurt "},"2 : 0/6 : 1","X","0 : 2/3:14","2 : 2","9:15","2. Platz"]
[null,{"$f":"$O$3","v":"Sportschule"},"2 : 0/14 : 1","2 : 0/14 : 3","X","4 : 0","28:4","1. Platz",null,null,null,"Fontane-Gymnasium Rangsdorf"]
[null,null,null,null,null,null,null,null,null,null,null,"Gymnasium Templin"]
["Staffel 2",null,null,null,null,null,null,null,null,null,null,"Sängerstadt-Gymnasium Finsterwalde"]
[null,null,null,null,null,null,null,null,null,null,null,"Gymnasium F. F. Runge Oranienburg"]
[null,null,null,null,null,null,null,null,null,null,null,"Sportschule Frankfurt (Oder)"]
[null,null,null,null,"Ergebnis",null,null,null,null,null,null,"Städtisches Gymnasium I Frankfurt"]
[{"$f":"$O$4","v":"Rangsdorf"},"gegen",{"$f":"$O$5","v":"Templin"},null,"5 : 8"]
[]
[{"$f":"$O$4","v":"Rangsdorf"},"gegen",{"$f":"$O$6","v":"Orianienburg"},null,"9 : 12"]
[]
[{"$f":"$O$5","v":"Templin"},"gegen",{"$f":"$O$6","v":"Orianienburg"},null,"8 : 11"]
[]
[]
[]
[]
[null,null,{"$f":"$O$4","v":"Rangsdorf"},{"$f":"$O$5","v":"Templin"},{"$f":"$O$6","v":"Orianienburg"},"Punkte","Tore"]
[null,{"$f":"$O$4","v":"Rangsdorf"},"X","0 : 2/5 : 8","0 : 2/9 : 12","0 : 4","14:20","3. Platz"]
[null,{"$f":"$O$5","v":"Templin"},"2 : 0/8 : 5","X","0 : 2/8 : 11","2 : 2","16:16","2. Platz"]
[null,{"$f":"$O$6","v":"Orianienburg"},"2 : 0/12 : 9","2 : 0/11 : 8","X","4 : 0","23:17","1. Platz"]
[]
[null,null,null,null,null,null,null,null,null,null,null,null,null,null,null,null,null,null,null,null,"Landesfinale 2014 WK II w"]
[]
[null,null,"Landesfinale 2019 WK II w",null,null,null,null,null,null,null,null,null,null,null,null,null,null,null,null,null,null,"Spielplan"]
[]
[null,null,null,"Spielplan",null,null,null,null,null,null,null,null,null,null,null,null,null,null,"Spielort:",null,"Mehrzweckhalle"]
[]
["Spielort:","Mehrzweckhalle",null,null,null,null,null,null,null,null,null,null,null,null,null,null,null,null,"Spielnr.",null,null,null,null,null,"Ergebnis"]
[]
["Spielnr.",null,null,null,null,null,"Ergebnis",null,null,null,null,null,null,null,null,null,null,null,1,null,{"$f":"$O$1","v":"Finsterwalde"},"gegen",{"$f":"$O$2","v":"Frankfurt "},null,":"]
[]
[1,null,{"$f":"$O$1","v":"Finsterwalde"},"gegen",{"$f":"$O$2","v":"Frankfurt "},null,"1 : 6",null,null,null,null,null,null,null,null,null,null,null,2,null,{"$f":"$O$4","v":"Rangsdorf"},"gegen",{"$f":"$O$5","v":"Templin"},null,":"]
[]
[2,null,{"$f":"$O$4","v":"Rangsdorf"},"gegen",{"$f":"$O$5","v":"Templin"},null,"5 : 8",null,null,null,null,null,null,null,null,null,null,null,3,null,{"$f":"$O$1","v":"Finsterwalde"},"gegen",{"$f":"$O$3","v":"Sportschule"},null,":"]
[]
[3,null,{"$f":"$O$1","v":"Finsterwalde"},"gegen",{"$f":"$O$3","v":"Sportschule"},null,"1 : 14",null,null,null,null,null,null,null,null,null,null,null,4,null,{"$f":"$O$4","v":"Rangsdorf"},"gegen",{"$f":"$O$6","v":"Orianienburg"},null,":"]
[]
[4,null,{"$f":"$O$4","v":"Rangsdorf"},"gegen",{"$f":"$O$6","v":"Orianienburg"},null,"9 : 12",null,null,null,null,null,null,null,null,null,null,null,5,null,{"$f":"$O$2","v":"Frankfurt "},"gegen",{"$f":"$O$3","v":"Sportschule"},null,":"]
[]
[5,null,{"$f":"$O$2","v":"Frankfurt "},"gegen",{"$f":"$O$3","v":"Sportschule"},null,"3 : 14",null,null,null,null,null,null,null,null,null,null,null,6,null,{"$f":"$O$5","v":"Templin"},"gegen",{"$f":"$O$6","v":"Orianienburg"},null,":"]
[]
[6,null,{"$f":"$O$5","v":"Templin"},"gegen",{"$f":"$O$6","v":"Orianienburg"},null,"8 : 11",null,null,null,null,null,null,null,null,null,null,null,null,null,null,"Spielplan Endrunde"]
[]
[null,null,null,"Spielplan Endrunde",null,null,null,null,null,null,null,null,null,null,null,null,null,null,7,null,"Sieger Staffel II","gegen","Zweiter Staffel I",null,":"]
[]
[7,"1. Halbfinale",{"$f":"$O$3","v":"Sportschule"},"gegen",{"$f":"$O$5","v":"Templin"},null,"19 : 4",null,null,null,null,null,null,null,null,null,null,null,8,null,"Sieger Staffel I","gegen","Zweiter Staffel II",null,":"]
[]
[8,"2. Halbfinale",{"$f":"$O$2","v":"Frankfurt "},"gegen",{"$f":"$O$6","v":"Orianienburg"},null,"13 : 7",null,null,null,null,null,null,null,null,null,null,null,9,null,"Dritter Staffel I","gegen","Dritter Staffel II",null,":"]
[]
[9,"Spiel um Platz 5","Sängerstadt","gegen","Rangsdorf",null,"14 : 9",null,null,null,null,null,null,null,null,null,null,null,10,null,"Spiel um Platz 3",null,null,null,":"]
[]
[10,"Spiel um Platz 3",{"$f":"$O$5","v":"Templin"},"gegen",{"$f":"$O$6","v":"Orianienburg"},null,"10 : 12",null,null,null,null,null,null,null,null,null,null,null,11,null,"Spiel um Platz 1",null,null,null,":"]
[]
[11,"Spiel um Platz 1",{"$f":"$O$3","v":"Sportschule"},"gegen",{"$f":"$O$2","v":"Frankfurt "},null,"17 : 5",null,null,null,null,null,null,null,null,null,null,null,"Die Spiele 7 und 8 können wegen der Spielreihenfolge der Vorrunde getauscht werden."]
[]
["Die Spiele 7 und 8 können wegen der Spielreihenfolge der Vorrunde getauscht werden.",null,null,null,null,null,null,null,null,null,null,null,null,null,null,null,null,null,"Kriterien für die Ermittlung der Reihenfolge:"]
[]
["Kriterien für die Ermittlung der Reihenfolge:",null,null,null,null,null,null,null,null,null,null,null,null,null,null,null,null,null,null,null,null,"1. Punktverhältnis"]
[null,null,null,null,null,null,null,null,null,null,null,null,null,null,null,null,null,null,null,null,null,"2. Tordifferenz"]
[null,null,null,"1. Punktverhältnis",null,null,null,null,null,null,null,null,null,null,null,null,null,null,null,null,null,"3. die mehr erzielten Tore"]
[null,null,null,"2. Tordifferenz",null,null,null,null,null,null,null,null,null,null,null,null,null,null,null,null,null,"4. Ergebnis Direktvergleich"]
[null,null,null,"3. die mehr erzielten Tore",null,null,null,null,null,null,null,null,null,null,null,null,null,null,null,null,null,"5. Siebenmeterwerfen"]
[null,null,null,"4. Ergebnis Direktvergleich"]
[null,null,null,"5. Siebenmeterwerfen"]

{"sheet":"5 Teilnehmer","index":3,"n_rows":43,"n_cols":17,"rows_kept":43,"cut":false,"hidden":false,"merged":[]}
[null,null,"Landesfinale 2018 der WK II w ",null,null,null,null,null,null,null,null,null,null,null,"Rangsdorf","1","1. Staffel 1"]
[null,null,null,null,null,null,null,null,null,null,null,null,null,null,"Templin",2,"1. Staffel 2"]
[null,null,null,null,null,null,null,null,null,null,null,null,null,null,"Eichwalde",3,"2. Staffel 1"]
[null,"Spielplan",null,null,null,null,null,null,null,null,null,null,null,null,"Frankfurt",4,"2. Staffel 2"]
[null,null,null,null,null,null,null,null,null,null,null,null,null,null,"Rüdersdorf",5,"3. Staffel 1"]
[null,null,null,null,null,"Ergebnis",null,null,null,null,null,null,null,null,"Hennigsdorf",6,"3. Staffel 2"]
[{"$f":"$P$1","v":"1"},"gegen",{"$f":"$P$2","v":2},null,null,":",null,null,null,null,null,null,null,null,null,7,"4. Staffel 1"]
[null,null,null,null,null,null,null,null,null,null,null,null,null,null,null,8,"4. Staffel 2"]
[{"$f":"$P$3","v":3},"gegen",{"$f":"$P$4","v":4},null,null,":",null,null,null,null,null,null,null,null,null,9]
[null,null,null,null,null,null,null,null,null,null,null,null,null,null,null,10]
[{"$f":"$P$1","v":"1"},"gegen",{"$f":"$P$5","v":5},null,null,":",null,null,null,null,null,null,null,null,null,11]
[]
[{"$f":"$P$2","v":2},"gegen",{"$f":"$P$3","v":3},null,null,":"]
[]
[{"$f":"$P$4","v":4},"gegen",{"$f":"$P$5","v":5},null,null,":"]
[]
[{"$f":"$P$1","v":"1"},"gegen",{"$f":"$P$3","v":3},null,null,":",null,null,null,null,null,null,null,null,"Fontane-Gymnasium Rangsdorf"]
[null,null,null,null,null,null,null,null,null,null,null,null,null,null,"Gymnasium Templin"]
[{"$f":"$P$2","v":2},"gegen",{"$f":"$P$4","v":4},null,null,":",null,null,null,null,null,null,null,null,"Humboldt-Gymnasium Eichwalde"]
[null,null,null,null,null,null,null,null,null,null,null,null,null,null,"Alexander S. Puschkin Gymnasium Hennigsdorf"]
[{"$f":"$P$3","v":3},"gegen",{"$f":"$P$5","v":5},null,null,":",null,null,null,null,null,null,null,null,"Sportschule Frankfurt (Oder)"]
[null,null,null,null,null,null,null,null,null,null,null,null,null,null,"Friedrich-Anton-von-Heinitz-Gymnasium Rüdersdorf"]
[{"$f":"$P$1","v":"1"},"gegen",{"$f":"$P$4","v":4},null,null,":"]
[]
[{"$f":"$P$2","v":2},"gegen",{"$f":"$P$5","v":5},null,null,":"]
[]
[]
[null,{"$f":"$P$1","v":"1"},{"$f":"$P$2","v":2},{"$f":"$P$3","v":3},{"$f":"$P$4","v":4},{"$f":"$P$5","v":5},"Punkte","Balldiff.","Platz"]
[{"$f":"$P$1","v":"1"},"x",":",":",":",":",":",":"]
[{"$f":"$P$2","v":2},":","x",":",":",":",":",":"]
[{"$f":"$P$3","v":3},":",":","x",":",":",":",":"]
[{"$f":"$P$4","v":4},":",":",":","x",":",":",":"]
[{"$f":"$P$5","v":5},":",":",":",":","x",":",":"]
[]
[]
[]
["Kriterien für die Ermittlung der Reihenfolge:"]
[]
[null,null,null,"1. Punktverhältnis"]
[null,null,null,"2. Tordifferenz"]
[null,null,null,"3. Die mehr erzielten Tore"]
[null,null,null,"4. Ergebnis Direktvergleich"]
[null,null,null,"5. Siebenmeterwerfen"]

{"sheet":"Auswertung","index":4,"n_rows":79,"n_cols":25,"rows_kept":79,"cut":false,"hidden":false,"merged":[]}
[null,null,null,"Landesfinale 2019 der WK II w ",null,null,null,null,null,null,null,null,null,"Rangsdorf","Finsterwalde","1. Staffel 1"]
[null,null,null,null,null,null,null,null,null,null,null,null,null,"Templin","Frankfurt ","1. Staffel 2"]
["Staffel 1",null,null,null,null,null,null,null,null,null,null,null,null,"Eichwalde","Sportschule","2. Staffel 1"]
[null,null,null,null,null,null,null,null,null,null,null,null,null,"Frankfurt","Rangsdorf","2. Staffel 2"]
[null,null,null,null,null,null,null,null,null,null,null,null,null,"Rüdersdorf","Templin","3. Staffel 1"]
[null,null,null,null,"Ergebnis",null,null,null,null,null,null,null,null,"Hennigsdorf","Orianienburg","3. Staffel 2"]
[{"$f":"$O$1","v":"Finsterwalde"},"gegen",{"$f":"$O$2","v":"Frankfurt "},null,"1 : 6",null,null,null,null,null,null,null,null,null,7,"4. Staffel 1"]
[null,null,null,null,null,null,null,null,null,null,null,null,null,null,8,"4. Staffel 2"]
[{"$f":"$O$1","v":"Finsterwalde"},"gegen",{"$f":"$O$3","v":"Sportschule"},null,"1 : 14",null,null,null,null,null,null,null,null,null,9]
[null,null,null,null,null,null,null,null,null,null,null,null,null,null,10]
[{"$f":"$O$2","v":"Frankfurt "},"gegen",{"$f":"$O$3","v":"Sportschule"},null,"3 : 14",null,null,null,null,null,null,null,null,null,11]
[]
[]
[null,null,{"$f":"$O$1","v":"Finsterwalde"},{"$f":"$O$2","v":"Frankfurt "},{"$f":"$O$3","v":"Sportschule"},"Punkte","Tore"]
[null,{"$f":"$O$1","v":"Finsterwalde"},"X","0 : 2/1 : 6","0 : 2/1 : 14","0 : 4","2:20","3. Platz"]
[null,{"$f":"$O$2","v":"Frankfurt "},"2 : 0/6 : 1","X","0 : 2/3:14","2 : 2","9:15","2. Platz"]
[null,{"$f":"$O$3","v":"Sportschule"},"2 : 0/14 : 1","2 : 0/14 : 3","X","4 : 0","28:4","1. Platz",null,null,null,"Fontane-Gymnasium Rangsdorf"]
[null,null,null,null,null,null,null,null,null,null,null,"Gymnasium Templin"]
["Staffel 2",null,null,null,null,null,null,null,null,null,null,"Sängerstadt-Gymnasium Finsterwalde"]
[null,null,null,null,null,null,null,null,null,null,null,"Gymnasium F. F. Runge Oranienburg"]
[null,null,null,null,null,null,null,null,null,null,null,"Sportschule Frankfurt (Oder)"]
[null,null,null,null,"Ergebnis",null,null,null,null,null,null,"Städtisches Gymnasium I Frankfurt"]
[{"$f":"$O$4","v":"Rangsdorf"},"gegen",{"$f":"$O$5","v":"Templin"},null,"5 : 8"]
[]
[{"$f":"$O$4","v":"Rangsdorf"},"gegen",{"$f":"$O$6","v":"Orianienburg"},null,"9 : 12"]
[]
[{"$f":"$O$5","v":"Templin"},"gegen",{"$f":"$O$6","v":"Orianienburg"},null,"8 : 11"]
[]
[]
[]
[]
[null,null,{"$f":"$O$4","v":"Rangsdorf"},{"$f":"$O$5","v":"Templin"},{"$f":"$O$6","v":"Orianienburg"},"Punkte","Tore"]
[null,{"$f":"$O$4","v":"Rangsdorf"},"X","0 : 2/5 : 8","0 : 2/9 : 12","0 : 4","14:20","3. Platz"]
[null,{"$f":"$O$5","v":"Templin"},"2 : 0/8 : 5","X","0 : 2/8 : 11","2 : 2","16:16","2. Platz"]
[null,{"$f":"$O$6","v":"Orianienburg"},"2 : 0/12 : 9","2 : 0/11 : 8","X","4 : 0","23:17","1. Platz"]
[]
[null,null,null,null,null,null,null,null,null,null,null,null,null,null,null,null,null,null,null,null,"Landesfinale 2014 WK II w"]
[]
[null,null,"Landesfinale 2019 WK II w",null,null,null,null,null,null,null,null,null,null,null,null,null,null,null,null,null,null,"Spielplan"]
[]
[null,null,null,"Spielplan",null,null,null,null,null,null,null,null,null,null,null,null,null,null,"Spielort:",null,"Mehrzweckhalle"]
[]
["Spielort:","Mehrzweckhalle",null,null,null,null,null,null,null,null,null,null,null,null,null,null,null,null,"Spielnr.",null,null,null,null,null,"Ergebnis"]
[]
["Spielnr.",null,null,null,null,null,"Ergebnis",null,null,null,null,null,null,null,null,null,null,null,1,null,{"$f":"$O$1","v":"Finsterwalde"},"gegen",{"$f":"$O$2","v":"Frankfurt "},null,":"]
[]
[1,null,{"$f":"$O$1","v":"Finsterwalde"},"gegen",{"$f":"$O$2","v":"Frankfurt "},null,"1 : 6",null,null,null,null,null,null,null,null,null,null,null,2,null,{"$f":"$O$4","v":"Rangsdorf"},"gegen",{"$f":"$O$5","v":"Templin"},null,":"]
[]
[2,null,{"$f":"$O$4","v":"Rangsdorf"},"gegen",{"$f":"$O$5","v":"Templin"},null,"5 : 8",null,null,null,null,null,null,null,null,null,null,null,3,null,{"$f":"$O$1","v":"Finsterwalde"},"gegen",{"$f":"$O$3","v":"Sportschule"},null,":"]
[]
[3,null,{"$f":"$O$1","v":"Finsterwalde"},"gegen",{"$f":"$O$3","v":"Sportschule"},null,"1 : 14",null,null,null,null,null,null,null,null,null,null,null,4,null,{"$f":"$O$4","v":"Rangsdorf"},"gegen",{"$f":"$O$6","v":"Orianienburg"},null,":"]
[]
[4,null,{"$f":"$O$4","v":"Rangsdorf"},"gegen",{"$f":"$O$6","v":"Orianienburg"},null,"9 : 12",null,null,null,null,null,null,null,null,null,null,null,5,null,{"$f":"$O$2","v":"Frankfurt "},"gegen",{"$f":"$O$3","v":"Sportschule"},null,":"]
[]
[5,null,{"$f":"$O$2","v":"Frankfurt "},"gegen",{"$f":"$O$3","v":"Sportschule"},null,"3 : 14",null,null,null,null,null,null,null,null,null,null,null,6,null,{"$f":"$O$5","v":"Templin"},"gegen",{"$f":"$O$6","v":"Orianienburg"},null,":"]
[]
[6,null,{"$f":"$O$5","v":"Templin"},"gegen",{"$f":"$O$6","v":"Orianienburg"},null,"8 : 11",null,null,null,null,null,null,null,null,null,null,null,null,null,null,"Spielplan Endrunde"]
[]
[null,null,null,"Spielplan Endrunde",null,null,null,null,null,null,null,null,null,null,null,null,null,null,7,null,"Sieger Staffel II","gegen","Zweiter Staffel I",null,":"]
[]
[7,"1. Halbfinale",{"$f":"$O$3","v":"Sportschule"},"gegen",{"$f":"$O$5","v":"Templin"},null,"19 : 4",null,null,null,null,null,null,null,null,null,null,null,8,null,"Sieger Staffel I","gegen","Zweiter Staffel II",null,":"]
[]
[8,"2. Halbfinale",{"$f":"$O$2","v":"Frankfurt "},"gegen",{"$f":"$O$6","v":"Orianienburg"},null,"13 : 7",null,null,null,null,null,null,null,null,null,null,null,9,null,"Dritter Staffel I","gegen","Dritter Staffel II",null,":"]
[]
[9,"Spiel um Platz 5","Sängerstadt","gegen","Rangsdorf",null,"14 : 9",null,null,null,null,null,null,null,null,null,null,null,10,null,"Spiel um Platz 3",null,null,null,":"]
[]
[10,"Spiel um Platz 3",{"$f":"$O$5","v":"Templin"},"gegen",{"$f":"$O$6","v":"Orianienburg"},null,"10 : 12",null,null,null,null,null,null,null,null,null,null,null,11,null,"Spiel um Platz 1",null,null,null,":"]
[]
[11,"Spiel um Platz 1",{"$f":"$O$3","v":"Sportschule"},"gegen",{"$f":"$O$2","v":"Frankfurt "},null,"17 : 5",null,null,null,null,null,null,null,null,null,null,null,"Die Spiele 7 und 8 können wegen der Spielreihenfolge der Vorrunde getauscht werden."]
[]
["Die Spiele 7 und 8 können wegen der Spielreihenfolge der Vorrunde getauscht werden.",null,null,null,null,null,null,null,null,null,null,null,null,null,null,null,null,null,"Kriterien für die Ermittlung der Reihenfolge:"]
[]
["Kriterien für die Ermittlung der Reihenfolge:",null,null,null,null,null,null,null,null,null,null,null,null,null,null,null,null,null,null,null,null,"1. Punktverhältnis"]
[null,null,null,null,null,null,null,null,null,null,null,null,null,null,null,null,null,null,null,null,null,"2. Tordifferenz"]
[null,null,null,"1. Punktverhältnis",null,null,null,null,null,null,null,null,null,null,null,null,null,null,null,null,null,"3. die mehr erzielten Tore"]
[null,null,null,"2. Tordifferenz",null,null,null,null,null,null,null,null,null,null,null,null,null,null,null,null,null,"4. Ergebnis Direktvergleich"]
[null,null,null,"3. die mehr erzielten Tore",null,null,null,null,null,null,null,null,null,null,null,null,null,null,null,null,null,"5. Siebenmeterwerfen"]
[null,null,null,"4. Ergebnis Direktvergleich"]
[null,null,null,"5. Siebenmeterwerfen"]

{"sheet":"4 Teilnehmer","index":5,"n_rows":50,"n_cols":26,"rows_kept":50,"cut":false,"hidden":false,"merged":[]}
[null,null,"Landesfinale 2016 der WK II w ",null,null,null,null,null,null,null,null,null,"Bad Belzig",null,null,1,"1. Staffel 1"]
[null,null,null,null,null,null,null,null,null,null,null,null,"Finsterwalde",null,null,2,"1. Staffel 2"]
[null,null,"Spielplan",null,null,null,null,null,null,null,null,null,"Neuenhagen",null,null,3,"2. Staffel 1"]
[null,null,null,null,null,null,null,null,null,null,null,null,"Oranienburg",null,null,4,"2. Staffel 2"]
[null,null,null,null,null,"Ergebnis",null,null,null,null,null,null,"Sportschule",null,null,5,"3. Staffel 1"]
[{"$f":"$P$1","v":1},"gegen",{"$f":"$P$2","v":2},null,null,":",null,null,null,null,null,null,"Zeuthen",null,null,6,"3. Staffel 2"]
[null,null,null,null,null,null,null,null,null,null,null,null,null,null,null,7,"4. Staffel 1"]
[{"$f":"$P$3","v":3},"gegen",{"$f":"$P$4","v":4},null,null,":",null,null,null,null,null,null,null,null,null,8,"4. Staffel 2"]
[null,null,null,null,null,null,null,null,null,null,null,null,null,null,null,9]
[{"$f":"$P$1","v":1},"gegen",{"$f":"$P$4","v":4},null,null,":",null,null,null,null,null,null,null,null,null,10]
[null,null,null,null,null,null,null,null,null,null,null,null,null,null,null,11]
[{"$f":"$P$2","v":2},"gegen",{"$f":"$P$3","v":3},null,null,":",null,null,null,null,null,null,null,null,null,null,null,null,null,null,null,null,"Spielplan Vorrunde"]
[]
[{"$f":"$P$1","v":1},"gegen",{"$f":"$P$3","v":3},null,null,":"]
[null,null,null,null,null,null,null,null,null,null,null,null,null,null,null,null,null,null,null,"Spielnr.",null,null,null,null,null,"Ergebnis"]
[{"$f":"$P$2","v":2},"gegen",{"$f":"$P$4","v":4},null,null,":",null,null,null,null,null,null,"Fläming-Gymnasium Bad Belzig"]
[null,null,null,null,null,null,null,null,null,null,null,null,"Einstein Gymnasium Neuenhagen",null,null,null,null,null,null,1,null,{"$f":"$P$1","v":1},"gegen",{"$f":"$P$2","v":2},null,":"]
[null,null,null,null,null,null,null,null,null,null,null,null,"F. F. Runge Gymnasium Oranienburg"]
[null,{"$f":"$P$1","v":1},{"$f":"$P$2","v":2},{"$f":"$P$3","v":3},{"$f":"$P$4","v":4},"Punkte","Balldiff.",null,null,null,null,null,"Gymnasium Templin",null,null,null,null,null,null,2,null,{"$f":"$P$4","v":4},"gegen",{"$f":"$P$5","v":5},null,":"]
[{"$f":"$P$1","v":1},"x",null,null,null,":",":",null,null,null,null,null,"Sängerstadt-Gymnasium Finsterwalde"]
[{"$f":"$P$2","v":2},null,"x",null,null,":",":",null,null,null,null,null,"Sportschule Frankfurt (Oder)",null,null,null,null,null,null,3,null,{"$f":"$P$1","v":1},"gegen",{"$f":"$P$3","v":3},null,":"]
[{"$f":"$P$3","v":3},null,null,"x",null,":",":",null,null,null,null,null,"Musikbetonte Gesamtschule Zeuthen"]
[{"$f":"$P$4","v":4},null,null,null,"x",":",":",null,null,null,null,null,null,null,null,null,null,null,null,4,null,{"$f":"$P$4","v":4},"gegen",{"$f":"$P$6","v":6},null,":"]
[]
["Kriterien für die Ermittlung der Reihenfolge:",null,null,null,null,null,null,null,null,null,null,null,null,null,null,null,null,null,null,5,null,{"$f":"$P$2","v":2},"gegen",{"$f":"$P$3","v":3},null,":"]
[]
[null,null,null,"1. Punktverhältnis",null,null,null,null,null,null,null,null,null,null,null,null,null,null,null,6,null,{"$f":"$P$5","v":5},"gegen",{"$f":"$P$6","v":6},null,":"]
[null,null,null,"2. Tordifferenz"]
[null,null,null,"3. Die mehr erzielten Tore"]
[null,null,null,"4. Ergebnis Direktvergleich"]
[null,null,null,"5. Siebenmeterwerfen",null,null,null,null,null,null,null,null,null,null,null,null,null,null,null,null,null,"Spielplan Endrunde"]
[]
[null,null,null,null,null,null,null,null,null,null,null,null,null,null,null,null,null,null,null,7,null,"Sieger Staffel II","gegen","Zweiter Staffel I",null,":"]
[]
[null,null,null,null,null,null,null,null,null,null,null,null,null,null,null,null,null,null,null,8,null,"Sieger Staffel I","gegen","Zweiter Staffel II",null,":"]
[]
[null,null,null,null,null,null,null,null,null,null,null,null,null,null,null,null,null,null,null,9,null,"Dritter Staffel I","gegen","Dritter Staffel II",null,":"]
[]
[null,null,null,null,null,null,null,null,null,null,null,null,null,null,null,null,null,null,null,10,null,"Spiel um Platz 3",null,null,null,":"]
[]
[null,null,null,null,null,null,null,null,null,null,null,null,null,null,null,null,null,null,null,11,null,"Spiel um Platz 1",null,null,null,":"]
[]
[]
[]
[]
["Gemeldeten Mannschaften:",null,"von Saldern-Gymnasium Europaschule Brandenburg"]
[null,null,"Carl-Friedrich-Gauß-Gymnasium Schwedt"]
[null,null,"Luiese-Henriette-Gymnasium Oranienburg"]
[null,null,"Sängerstadt-Gymnasium Finsterwalde"]
[null,null,"Sportschule Frankfurt (Oder)"]